[Event "Titled Tuesday Blitz August 1 Late 2023"]
[White "Awoki, Daniel Teidi"]
[Black "campochess"]
[WhiteFideId "2100827"]
[WhiteElo "2328"]
[BlackElo "2204"]
[Result "0-1"]
[Round "6"]
[TimeControl "180+1"]
[Date "2023.08.01"]
[WhiteClock "0:00:00"]
[BlackClock "0:00:24"]
[Board "144"]

1. d4 {[%clk 0:03:00]}  c5 {[%clk 0:02:59]} 2. Nf3 {[%clk 0:03:01]}  cxd4 {[%clk 0:02:59]} 3. Nxd4 {[%clk 0:03:01]}  g6 {[%clk 0:02:59]} 4. e4 {[%clk 0:03:01]}  Bg7 {[%clk 0:02:59]} 5. c4 {[%clk 0:03:01]}  Nc6 {[%clk 0:02:59]} 6. Be3 {[%clk 0:03:02]}  Nf6 {[%clk 0:02:51]} 7. Nc3 {[%clk 0:03:02]}  O-O {[%clk 0:02:50]} 8. Be2 {[%clk 0:03:03]}  d6 {[%clk 0:02:50]} 9. O-O {[%clk 0:03:03]}  Bd7 {[%clk 0:02:48]} 10. h3 {[%clk 0:03:00]}  a6 {[%clk 0:02:47]} 11. Qc2 {[%clk 0:02:59]}  Rc8 {[%clk 0:02:47]} 12. Rad1 {[%clk 0:02:59]}  Ne5 {[%clk 0:02:43]} 13. b3 {[%clk 0:02:56]}  b5 {[%clk 0:02:35]} 14. cxb5 {[%clk 0:02:57]}  axb5 {[%clk 0:02:35]} 15. Bxb5 {[%clk 0:02:54]}  Nxe4 {[%clk 0:02:31]} 16. Qxe4 {[%clk 0:02:51]}  Rxc3 {[%clk 0:02:30]} 17. Rc1 {[%clk 0:02:46]}  Qa5 {[%clk 0:02:23]} 18. Bxd7 {[%clk 0:02:43]}  Nxd7 {[%clk 0:02:18]} 19. Rxc3 {[%clk 0:02:39]}  Qxc3 {[%clk 0:02:17]} 20. Qxe7 {[%clk 0:02:40]}  Bxd4 {[%clk 0:02:10]} 21. Bxd4 {[%clk 0:02:39]}  Qxd4 {[%clk 0:02:09]} 22. Qxd7 {[%clk 0:02:39]}  Qd2 {[%clk 0:02:00]} 23. a4 {[%clk 0:02:31]}  Rb8 {[%clk 0:01:59]} 24. Rb1 {[%clk 0:02:03]}  Rb4 {[%clk 0:01:57]} 25. a5 {[%clk 0:01:52]}  Rf4 {[%clk 0:01:56]} 26. Qa7 {[%clk 0:01:44]}  d5 {[%clk 0:01:49]} 27. Qe3 {[%clk 0:01:39]}  Qb4 {[%clk 0:01:44]} 28. a6 {[%clk 0:01:33]}  Re4 {[%clk 0:01:44]} 29. a7 {[%clk 0:01:28]}  Qa5 {[%clk 0:01:38]} 30. Qd3 {[%clk 0:01:04]}  Qxa7 {[%clk 0:01:35]} 31. Qxd5 {[%clk 0:01:03]}  Re6 {[%clk 0:01:30]} 32. b4 {[%clk 0:00:56]}  Rf6 {[%clk 0:01:30]} 33. Qc5 {[%clk 0:00:45]}  Qa2 {[%clk 0:01:27]} 34. Rd1 {[%clk 0:00:38]}  Rf5 {[%clk 0:01:27]} 35. Rd8+ {[%clk 0:00:26]}  Kg7 {[%clk 0:01:27]} 36. Qf8+ {[%clk 0:00:18]}  Kf6 {[%clk 0:01:26]} 37. Rd6+ {[%clk 0:00:15]}  Kg5 {[%clk 0:01:26]} 38. Qe7+ {[%clk 0:00:14]}  Kh6 {[%clk 0:01:23]} 39. Qf8+ {[%clk 0:00:13]}  Kg5 {[%clk 0:01:23]} 40. h4+ {[%clk 0:00:12]}  Kh5 {[%clk 0:01:14]} 41. Rd4 {[%clk 0:00:04]}  Qa1+ {[%clk 0:01:12]} 42. Kh2 {[%clk 0:00:03]}  Qxd4 {[%clk 0:01:12]} 43. f3 {[%clk 0:00:03]}  Qxh4+ {[%clk 0:01:11]} 44. Kg1 {[%clk 0:00:04]}  Qd4+ {[%clk 0:01:09]} 45. Kh2 {[%clk 0:00:04]}  Rf4 {[%clk 0:01:06]} 46. g4+ {[%clk 0:00:03]}  Kg5 {[%clk 0:01:00]} 47. Qe7+ {[%clk 0:00:04]}  f6 {[%clk 0:00:58]} 48. Qe2 {[%clk 0:00:03]}  Qxb4 {[%clk 0:00:56]} 49. Kg3 {[%clk 0:00:03]}  h5 {[%clk 0:00:47]} 50. Qh2 {[%clk 0:00:03]}  Qd6 {[%clk 0:00:36]} 51. Qh4+ {[%clk 0:00:02]}  Kh6 {[%clk 0:00:36]} 52. Kg2 {[%clk 0:00:01]}  Qd2+ {[%clk 0:00:34]} 53. Kg3 {[%clk 0:00:00]}  Rc4 {[%clk 0:00:24]} 0-1


[Site "https://www.chess.com"]

[Event "Titled Tuesday Blitz August 1 Late 2023"]
[White "Petersson, Kjell"]
[Black "Ahn, Hongjin"]
[WhiteFideId "1705148"]
[BlackFideId "13201492"]
[WhiteElo "2186"]
[BlackElo "2321"]
[Result "1-0"]
[Round "6"]
[TimeControl "180+1"]
[Date "2023.08.01"]
[WhiteClock "0:00:33"]
[BlackClock "0:00:00"]
[Board "145"]

1. d4 {[%clk 0:02:59]}  d5 {[%clk 0:00:20]} 2. Bf4 {[%clk 0:03:00]}  e6 {[%clk 0:00:21]} 3. e3 {[%clk 0:03:00]}  Nf6 {[%clk 0:00:21]} 4. Nf3 {[%clk 0:03:00]}  Bd6 {[%clk 0:00:22]} 5. Bg3 {[%clk 0:02:57]}  Bxg3 {[%clk 0:00:21]} 6. hxg3 {[%clk 0:02:56]}  Qd6 {[%clk 0:00:22]} 7. Nbd2 {[%clk 0:02:51]}  O-O {[%clk 0:00:22]} 8. Bd3 {[%clk 0:02:49]}  Nbd7 {[%clk 0:00:21]} 9. c3 {[%clk 0:02:49]}  e5 {[%clk 0:00:21]} 10. dxe5 {[%clk 0:02:48]}  Nxe5 {[%clk 0:00:22]} 11. Nxe5 {[%clk 0:02:47]}  Qxe5 {[%clk 0:00:22]} 12. Qc2 {[%clk 0:02:46]}  h6 {[%clk 0:00:21]} 13. O-O-O {[%clk 0:02:45]}  c5 {[%clk 0:00:20]} 14. Nf3 {[%clk 0:02:42]}  Qe7 {[%clk 0:00:19]} 15. Qe2 {[%clk 0:02:36]}  c4 {[%clk 0:00:17]} 16. Bc2 {[%clk 0:02:36]}  Be6 {[%clk 0:00:16]} 17. Nd4 {[%clk 0:02:33]}  a6 {[%clk 0:00:15]} 18. f3 {[%clk 0:02:19]}  b5 {[%clk 0:00:14]} 19. a3 {[%clk 0:02:14]}  a5 {[%clk 0:00:14]} 20. Nxb5 {[%clk 0:02:13]}  Rfb8 {[%clk 0:00:13]} 21. a4 {[%clk 0:02:12]}  Bd7 {[%clk 0:00:12]} 22. Na3 {[%clk 0:01:54]}  Qd8 {[%clk 0:00:11]} 23. e4 {[%clk 0:01:49]}  Qb6 {[%clk 0:00:11]} 24. Bb1 {[%clk 0:01:46]}  Bxa4 {[%clk 0:00:10]} 25. Rd2 {[%clk 0:01:37]}  dxe4 {[%clk 0:00:10]} 26. fxe4 {[%clk 0:01:33]}  Bb3 {[%clk 0:00:06]} 27. e5 {[%clk 0:01:29]}  Nd5 {[%clk 0:00:06]} 28. Rxd5 {[%clk 0:01:27]}  Rd8 {[%clk 0:00:04]} 29. Rxd8+ {[%clk 0:01:09]}  Rxd8 {[%clk 0:00:05]} 30. Nxc4 {[%clk 0:01:05]}  Bxc4 {[%clk 0:00:05]} 31. Qxc4 {[%clk 0:01:04]}  Qe3+ {[%clk 0:00:05]} 32. Kc2 {[%clk 0:01:03]}  Qd2+ {[%clk 0:00:05]} 33. Kb3 {[%clk 0:01:03]}  Rb8+ {[%clk 0:00:05]} 34. Ka4 {[%clk 0:00:56]}  Qxb2 {[%clk 0:00:04]} 35. Rd1 {[%clk 0:00:42]}  Qa1+ {[%clk 0:00:01]} 36. Qa2 {[%clk 0:00:39]}  Qxa2+ {[%clk 0:00:02]} 37. Bxa2 {[%clk 0:00:39]}  Kf8 {[%clk 0:00:02]} 38. Rd7 {[%clk 0:00:37]}  Ra8 {[%clk 0:00:03]} 39. Rxf7+ {[%clk 0:00:37]}  Ke8 {[%clk 0:00:04]} 40. Rxg7 {[%clk 0:00:37]}  Rd8 {[%clk 0:00:05]} 41. Rh7 {[%clk 0:00:36]}  Rd5 {[%clk 0:00:05]} 42. Bxd5 {[%clk 0:00:33]}  Kd8 {[%clk 0:00:00]} 43. e6 {[%clk 0:00:33]} 1-0


[Site "https://www.chess.com"]

[Event "Titled Tuesday Blitz August 1 Late 2023"]
[White "Dominguez Rincon, Miller Duvan"]
[Black "The_Straightforward_Rook"]
[WhiteFideId "4406583"]
[WhiteElo "1972"]
[BlackElo "2310"]
[Result "0-1"]
[Round "6"]
[TimeControl "180+1"]
[Date "2023.08.01"]
[WhiteClock "0:00:00"]
[BlackClock "0:02:10"]
[Board "148"]

1. e4 {[%clk 0:00:15]}  c5 {[%clk 0:02:57]} 2. Nf3 {[%clk 0:00:14]}  Nc6 {[%clk 0:02:56]} 3. d4 {[%clk 0:00:15]}  cxd4 {[%clk 0:02:57]} 4. Nxd4 {[%clk 0:00:15]}  e5 {[%clk 0:02:58]} 5. Nb5 {[%clk 0:00:13]}  d6 {[%clk 0:02:57]} 6. N1c3 {[%clk 0:00:12]}  a6 {[%clk 0:02:57]} 7. Na3 {[%clk 0:00:13]}  Be7 {[%clk 0:02:54]} 8. Nd5 {[%clk 0:00:13]}  Nf6 {[%clk 0:02:54]} 9. Nxe7 {[%clk 0:00:11]}  Nxe7 {[%clk 0:02:52]} 10. Bd3 {[%clk 0:00:11]}  O-O {[%clk 0:02:49]} 11. O-O {[%clk 0:00:11]}  d5 {[%clk 0:02:49]} 12. exd5 {[%clk 0:00:10]}  Nfxd5 {[%clk 0:02:48]} 13. c3 {[%clk 0:00:10]}  b5 {[%clk 0:02:47]} 14. Nc2 {[%clk 0:00:09]}  Kh8 {[%clk 0:02:45]} 15. a4 {[%clk 0:00:10]}  Rb8 {[%clk 0:02:44]} 16. axb5 {[%clk 0:00:09]}  axb5 {[%clk 0:02:44]} 17. Ne3 {[%clk 0:00:08]}  Be6 {[%clk 0:02:43]} 18. Nxd5 {[%clk 0:00:08]}  Nxd5 {[%clk 0:02:44]} 19. Be4 {[%clk 0:00:06]}  f5 {[%clk 0:02:42]} 20. Bxd5 {[%clk 0:00:06]}  Qxd5 {[%clk 0:02:43]} 21. Qxd5 {[%clk 0:00:05]}  Bxd5 {[%clk 0:02:44]} 22. Re1 {[%clk 0:00:05]}  e4 {[%clk 0:02:43]} 23. Be3 {[%clk 0:00:05]}  b4 {[%clk 0:02:41]} 24. Bd4 {[%clk 0:00:05]}  bxc3 {[%clk 0:02:39]} 25. bxc3 {[%clk 0:00:06]}  Bc4 {[%clk 0:02:39]} 26. g3 {[%clk 0:00:05]}  Bd3 {[%clk 0:02:39]} 27. Ra7 {[%clk 0:00:05]}  Rg8 {[%clk 0:02:38]} 28. Rea1 {[%clk 0:00:05]}  h5 {[%clk 0:02:37]} 29. h4 {[%clk 0:00:06]}  Rb1+ {[%clk 0:02:28]} 30. Rxb1 {[%clk 0:00:05]}  Bxb1 {[%clk 0:02:29]} 31. Kg2 {[%clk 0:00:05]}  Bd3 {[%clk 0:02:27]} 32. Rf7 {[%clk 0:00:04]}  Kh7 {[%clk 0:02:21]} 33. Rxf5 {[%clk 0:00:03]}  Kh8 {[%clk 0:02:22]} 34. Rf7 {[%clk 0:00:03]}  Kh7 {[%clk 0:02:19]} 35. Rc7 {[%clk 0:00:03]}  Kg6 {[%clk 0:02:17]} 36. c4 {[%clk 0:00:03]}  Kf5 {[%clk 0:02:16]} 37. c5 {[%clk 0:00:04]}  g5 {[%clk 0:02:15]} 38. hxg5 {[%clk 0:00:03]}  Rxg5 {[%clk 0:02:15]} 39. Be3 {[%clk 0:00:04]}  Rg6 {[%clk 0:02:14]} 40. Re7 {[%clk 0:00:04]}  Be2 {[%clk 0:02:13]} 41. Re8 {[%clk 0:00:02]}  Bf3+ {[%clk 0:02:13]} 42. Kh2 {[%clk 0:00:03]}  Ra6 {[%clk 0:02:12]} 43. Rf8+ {[%clk 0:00:03]}  Kg6 {[%clk 0:02:11]} 44. Kh3 {[%clk 0:00:00]}  Ra1 {[%clk 0:02:10]} 0-1


[Site "https://www.chess.com"]

[Event "Titled Tuesday Blitz August 1 Late 2023"]
[White "Joubert, Dantelle"]
[Black "Rego, Pedro Filipe"]
[WhiteFideId "14310813"]
[BlackFideId "1904310"]
[WhiteElo "2051"]
[BlackElo "2335"]
[Result "0-1"]
[Round "6"]
[TimeControl "180+1"]
[Date "2023.08.01"]
[WhiteClock "0:00:00"]
[BlackClock "0:00:12"]
[Board "150"]

1. e4 {[%clk 0:03:00]}  e5 {[%clk 0:02:58]} 2. Nf3 {[%clk 0:02:59]}  Nc6 {[%clk 0:02:58]} 3. Nc3 {[%clk 0:02:58]}  g6 {[%clk 0:02:56]} 4. Nxe5 {[%clk 0:02:55]}  Nxe5 {[%clk 0:02:55]} 5. d4 {[%clk 0:02:55]}  Nc6 {[%clk 0:02:55]} 6. d5 {[%clk 0:02:53]}  Nb8 {[%clk 0:02:52]} 7. f4 {[%clk 0:02:50]}  Bg7 {[%clk 0:02:52]} 8. Bc4 {[%clk 0:02:42]}  d6 {[%clk 0:02:51]} 9. O-O {[%clk 0:02:40]}  Ne7 {[%clk 0:02:52]} 10. e5 {[%clk 0:02:35]}  O-O {[%clk 0:02:48]} 11. Qe2 {[%clk 0:02:22]}  Nd7 {[%clk 0:02:31]} 12. exd6 {[%clk 0:02:06]}  cxd6 {[%clk 0:02:31]} 13. Be3 {[%clk 0:02:03]}  Nf5 {[%clk 0:02:28]} 14. Bf2 {[%clk 0:02:00]}  Nb6 {[%clk 0:02:22]} 15. Bb3 {[%clk 0:01:58]}  Re8 {[%clk 0:02:13]} 16. Qd3 {[%clk 0:01:58]}  Qf6 {[%clk 0:02:11]} 17. Rad1 {[%clk 0:01:47]}  Bd7 {[%clk 0:02:10]} 18. g4 {[%clk 0:01:36]}  Nh4 {[%clk 0:01:54]} 19. Qg3 {[%clk 0:01:18]}  g5 {[%clk 0:01:32]} 20. fxg5 {[%clk 0:01:09]}  Nf3+ {[%clk 0:01:04]} 21. Kg2 {[%clk 0:01:08]}  Nxg5 {[%clk 0:01:05]} 22. Bd4 {[%clk 0:01:00]}  Qg6 {[%clk 0:01:02]} 23. Bxg7 {[%clk 0:00:41]}  Kxg7 {[%clk 0:01:03]} 24. h4 {[%clk 0:00:41]}  Ne4 {[%clk 0:01:03]} 25. Nxe4 {[%clk 0:00:37]}  Qxe4+ {[%clk 0:01:02]} 26. Kh3 {[%clk 0:00:36]}  h5 {[%clk 0:00:57]} 27. Rf4 {[%clk 0:00:33]}  Bxg4+ {[%clk 0:00:54]} 28. Kh2 {[%clk 0:00:31]}  Qe2+ {[%clk 0:00:53]} 29. Rf2 {[%clk 0:00:22]}  Qxd1 {[%clk 0:00:42]} 30. Qf4 {[%clk 0:00:19]}  Re7 {[%clk 0:00:31]} 31. Qf6+ {[%clk 0:00:17]}  Kg8 {[%clk 0:00:24]} 32. Qxe7 {[%clk 0:00:14]}  f5 {[%clk 0:00:16]} 33. Qg5+ {[%clk 0:00:11]}  Kf7 {[%clk 0:00:15]} 34. Qh6 {[%clk 0:00:05]}  Rg8 {[%clk 0:00:14]} 35. Qe6+ {[%clk 0:00:04]}  Kg7 {[%clk 0:00:14]} 36. Qe7+ {[%clk 0:00:01]}  Kg6 {[%clk 0:00:11]} 37. Qe6+ {[%clk 0:00:00]}  Kh7 {[%clk 0:00:12]} 0-1


[Site "https://www.chess.com"]

[Event "Titled Tuesday Blitz August 1 Late 2023"]
[White "Miranda, Rafael"]
[Black "Akhayan, Ruben"]
[WhiteFideId "130990"]
[BlackFideId "204439"]
[WhiteElo "2615"]
[BlackElo "2286"]
[Result "1-0"]
[Round "6"]
[TimeControl "180+1"]
[Date "2023.08.01"]
[WhiteClock "0:00:25"]
[BlackClock "0:00:15"]
[Board "151"]

1. e4 {[%clk 0:03:00]}  e5 {[%clk 0:02:57]} 2. Nf3 {[%clk 0:03:00]}  Nc6 {[%clk 0:02:56]} 3. Bb5 {[%clk 0:03:00]}  a6 {[%clk 0:02:55]} 4. Ba4 {[%clk 0:03:00]}  Nf6 {[%clk 0:02:55]} 5. d3 {[%clk 0:02:59]}  b5 {[%clk 0:02:55]} 6. Bb3 {[%clk 0:03:00]}  Be7 {[%clk 0:02:56]} 7. Nc3 {[%clk 0:03:00]}  O-O {[%clk 0:02:56]} 8. O-O {[%clk 0:03:00]}  d6 {[%clk 0:02:56]} 9. h3 {[%clk 0:03:00]}  Be6 {[%clk 0:02:56]} 10. Nd5 {[%clk 0:02:55]}  Na5 {[%clk 0:02:52]} 11. Nxf6+ {[%clk 0:02:46]}  Bxf6 {[%clk 0:02:51]} 12. Bxe6 {[%clk 0:02:37]}  fxe6 {[%clk 0:02:51]} 13. a4 {[%clk 0:02:37]}  c5 {[%clk 0:02:46]} 14. axb5 {[%clk 0:02:36]}  axb5 {[%clk 0:02:45]} 15. Bd2 {[%clk 0:02:33]}  Nc6 {[%clk 0:02:44]} 16. c3 {[%clk 0:02:30]}  Qd7 {[%clk 0:02:38]} 17. Qb3 {[%clk 0:02:28]}  Ne7 {[%clk 0:02:28]} 18. Bg5 {[%clk 0:02:22]}  h6 {[%clk 0:02:18]} 19. Bxf6 {[%clk 0:02:22]}  gxf6 {[%clk 0:02:19]} 20. d4 {[%clk 0:02:16]}  exd4 {[%clk 0:02:17]} 21. cxd4 {[%clk 0:02:16]}  c4 {[%clk 0:02:13]} 22. Qe3 {[%clk 0:02:16]}  Kh7 {[%clk 0:02:12]} 23. Nh2 {[%clk 0:02:02]}  f5 {[%clk 0:02:10]} 24. d5 {[%clk 0:01:30]}  exd5 {[%clk 0:02:00]} 25. exd5 {[%clk 0:01:18]}  Nxd5 {[%clk 0:01:57]} 26. Qd2 {[%clk 0:01:18]}  Nf6 {[%clk 0:01:53]} 27. Nf3 {[%clk 0:01:16]}  Ne4 {[%clk 0:01:30]} 28. Qd5 {[%clk 0:01:16]}  Rxa1 {[%clk 0:01:08]} 29. Rxa1 {[%clk 0:01:15]}  Rf7 {[%clk 0:01:02]} 30. Nd4 {[%clk 0:01:09]}  Nf6 {[%clk 0:00:54]} 31. Qf3 {[%clk 0:00:59]}  Ne4 {[%clk 0:00:43]} 32. Ra5 {[%clk 0:00:51]}  Rf6 {[%clk 0:00:27]} 33. Nxb5 {[%clk 0:00:49]}  Qg7 {[%clk 0:00:27]} 34. Ra7 {[%clk 0:00:31]}  Rf7 {[%clk 0:00:26]} 35. Rxf7 {[%clk 0:00:20]}  Qxf7 {[%clk 0:00:27]} 36. Nd4 {[%clk 0:00:21]}  Ng5 {[%clk 0:00:26]} 37. Qxf5+ {[%clk 0:00:20]}  Qxf5 {[%clk 0:00:27]} 38. Nxf5 {[%clk 0:00:21]}  d5 {[%clk 0:00:27]} 39. Ne3 {[%clk 0:00:22]}  d4 {[%clk 0:00:23]} 40. Nxc4 {[%clk 0:00:22]}  Ne4 {[%clk 0:00:24]} 41. f3 {[%clk 0:00:22]}  Nc5 {[%clk 0:00:24]} 42. Kf2 {[%clk 0:00:23]}  Nd3+ {[%clk 0:00:24]} 43. Ke2 {[%clk 0:00:23]}  Nc5 {[%clk 0:00:24]} 44. g3 {[%clk 0:00:23]}  Kg6 {[%clk 0:00:24]} 45. f4 {[%clk 0:00:24]}  Kf5 {[%clk 0:00:25]} 46. Kf3 {[%clk 0:00:25]}  h5 {[%clk 0:00:25]} 47. g4+ {[%clk 0:00:26]}  hxg4+ {[%clk 0:00:25]} 48. hxg4+ {[%clk 0:00:26]}  Ke6 {[%clk 0:00:26]} 49. g5 {[%clk 0:00:26]}  Kd5 {[%clk 0:00:26]} 50. Nd2 {[%clk 0:00:26]}  d3 {[%clk 0:00:27]} 51. b4 {[%clk 0:00:26]}  Ne6 {[%clk 0:00:26]} 52. Ke3 {[%clk 0:00:26]}  Nd4 {[%clk 0:00:19]} 53. g6 {[%clk 0:00:24]}  Nf5+ {[%clk 0:00:15]} 54. Kxd3 {[%clk 0:00:25]} 1-0


[Site "https://www.chess.com"]

[Event "Titled Tuesday Blitz August 1 Late 2023"]
[White "Winkels, Marcel"]
[Black "Gerbelli Neto, Eduardo"]
[WhiteFideId "1003887"]
[BlackFideId "2103281"]
[WhiteElo "2070"]
[BlackElo "2309"]
[Result "1-0"]
[Round "6"]
[TimeControl "180+1"]
[Date "2023.08.01"]
[WhiteClock "0:00:10"]
[BlackClock "0:00:11"]
[Board "154"]

1. e4 {[%clk 0:03:00]}  e5 {[%clk 0:02:59]} 2. Nf3 {[%clk 0:03:00]}  Nc6 {[%clk 0:02:59]} 3. Bb5 {[%clk 0:02:59]}  a6 {[%clk 0:02:59]} 4. Ba4 {[%clk 0:02:59]}  d6 {[%clk 0:03:00]} 5. d3 {[%clk 0:02:58]}  f5 {[%clk 0:02:59]} 6. O-O {[%clk 0:02:53]}  Nf6 {[%clk 0:02:58]} 7. d4 {[%clk 0:02:42]}  b5 {[%clk 0:02:52]} 8. Bb3 {[%clk 0:02:30]}  Nxd4 {[%clk 0:02:49]} 9. Nxd4 {[%clk 0:02:25]}  exd4 {[%clk 0:02:50]} 10. exf5 {[%clk 0:02:20]}  c5 {[%clk 0:02:37]} 11. Re1+ {[%clk 0:02:05]}  Kd7 {[%clk 0:02:35]} 12. Be6+ {[%clk 0:02:05]}  Kc7 {[%clk 0:02:35]} 13. c3 {[%clk 0:02:00]}  dxc3 {[%clk 0:02:27]} 14. Nxc3 {[%clk 0:01:58]}  Bb7 {[%clk 0:02:26]} 15. Bf4 {[%clk 0:01:44]}  Kb6 {[%clk 0:02:19]} 16. a4 {[%clk 0:01:41]}  b4 {[%clk 0:02:17]} 17. a5+ {[%clk 0:01:39]}  Ka7 {[%clk 0:02:17]} 18. Na4 {[%clk 0:01:39]}  Bc6 {[%clk 0:01:21]} 19. Nb6 {[%clk 0:01:35]}  Rb8 {[%clk 0:01:21]} 20. Qd3 {[%clk 0:01:12]}  Nh5 {[%clk 0:01:01]} 21. Be3 {[%clk 0:00:52]}  Qh4 {[%clk 0:00:44]} 22. Bd5 {[%clk 0:00:32]}  Bb5 {[%clk 0:00:35]} 23. Bc4 {[%clk 0:00:28]}  Nf4 {[%clk 0:00:35]} 24. Bxf4 {[%clk 0:00:24]}  Qxf4 {[%clk 0:00:36]} 25. Bxb5 {[%clk 0:00:23]}  axb5 {[%clk 0:00:36]} 26. Qxb5 {[%clk 0:00:19]}  d5 {[%clk 0:00:32]} 27. Qc6 {[%clk 0:00:17]}  Bd6 {[%clk 0:00:26]} 28. g3 {[%clk 0:00:15]}  Qxf5 {[%clk 0:00:20]} 29. Qxd6 {[%clk 0:00:14]}  c4 {[%clk 0:00:15]} 30. Re7+ {[%clk 0:00:13]}  Rb7 {[%clk 0:00:15]} 31. Rxb7+ {[%clk 0:00:12]}  Kxb7 {[%clk 0:00:16]} 32. a6+ {[%clk 0:00:11]}  Ka7 {[%clk 0:00:11]} 33. Qc7# {[%clk 0:00:10]} 1-0


[Site "https://www.chess.com"]

[Event "Titled Tuesday Blitz August 1 Late 2023"]
[White "Firouzja, Alireza"]
[Black "Harshavardhan G B"]
[WhiteFideId "12573981"]
[BlackFideId "25059009"]
[WhiteElo "3096"]
[BlackElo "2885"]
[Result "1-0"]
[Round "7"]
[TimeControl "180+1"]
[Date "2023.08.01"]
[WhiteClock "0:00:11"]
[BlackClock "0:00:01"]
[Board "2"]

1. e4 {[%clk 0:02:58]}  e5 {[%clk 0:02:58]} 2. Nf3 {[%clk 0:02:58]}  Nc6 {[%clk 0:02:55]} 3. Bb5 {[%clk 0:02:57]}  a6 {[%clk 0:02:55]} 4. Ba4 {[%clk 0:02:57]}  d6 {[%clk 0:02:55]} 5. O-O {[%clk 0:02:56]}  Bd7 {[%clk 0:02:54]} 6. c3 {[%clk 0:02:49]}  g6 {[%clk 0:02:51]} 7. d4 {[%clk 0:02:48]}  Bg7 {[%clk 0:02:50]} 8. h3 {[%clk 0:02:48]}  Nge7 {[%clk 0:02:47]} 9. Be3 {[%clk 0:02:46]}  O-O {[%clk 0:02:46]} 10. Nbd2 {[%clk 0:02:47]}  h6 {[%clk 0:02:39]} 11. Re1 {[%clk 0:02:37]}  Kh7 {[%clk 0:02:38]} 12. dxe5 {[%clk 0:02:30]}  dxe5 {[%clk 0:02:34]} 13. Qe2 {[%clk 0:02:16]}  Be6 {[%clk 0:02:32]} 14. Rad1 {[%clk 0:02:05]}  Qc8 {[%clk 0:02:31]} 15. Bb3 {[%clk 0:02:00]}  Rd8 {[%clk 0:02:29]} 16. Nf1 {[%clk 0:01:52]}  Bxb3 {[%clk 0:02:26]} 17. axb3 {[%clk 0:01:52]}  Qe6 {[%clk 0:02:24]} 18. b4 {[%clk 0:01:52]}  f5 {[%clk 0:02:10]} 19. Bc5 {[%clk 0:01:51]}  Rxd1 {[%clk 0:02:02]} 20. Rxd1 {[%clk 0:01:50]}  b6 {[%clk 0:02:01]} 21. Bxe7 {[%clk 0:01:49]}  Nxe7 {[%clk 0:02:00]} 22. Ng3 {[%clk 0:01:37]}  f4 {[%clk 0:01:36]} 23. Nf1 {[%clk 0:01:36]}  a5 {[%clk 0:01:36]} 24. bxa5 {[%clk 0:01:20]}  Rxa5 {[%clk 0:01:37]} 25. Qd3 {[%clk 0:01:21]}  Bf6 {[%clk 0:01:31]} 26. Qd7 {[%clk 0:01:19]}  Qxd7 {[%clk 0:01:20]} 27. Rxd7 {[%clk 0:01:20]}  Ra2 {[%clk 0:01:20]} 28. Nxe5 {[%clk 0:01:16]}  Bxe5 {[%clk 0:01:21]} 29. Rxe7+ {[%clk 0:01:16]}  Bg7 {[%clk 0:01:22]} 30. Rxc7 {[%clk 0:00:51]}  Rxb2 {[%clk 0:01:21]} 31. g3 {[%clk 0:00:48]}  f3 {[%clk 0:01:09]} 32. Rf7 {[%clk 0:00:43]}  Rc2 {[%clk 0:01:07]} 33. Ne3 {[%clk 0:00:42]}  Rxc3 {[%clk 0:01:05]} 34. Nd5 {[%clk 0:00:41]}  Rd3 {[%clk 0:01:00]} 35. Nxb6 {[%clk 0:00:30]}  Kg8 {[%clk 0:00:56]} 36. Rd7 {[%clk 0:00:30]}  Rb3 {[%clk 0:00:55]} 37. Nc4 {[%clk 0:00:26]}  Rb1+ {[%clk 0:00:48]} 38. Kh2 {[%clk 0:00:26]}  Rf1 {[%clk 0:00:48]} 39. Rd2 {[%clk 0:00:25]}  Bc3 {[%clk 0:00:47]} 40. Ne3 {[%clk 0:00:24]}  Re1 {[%clk 0:00:22]} 41. Rd3 {[%clk 0:00:24]}  Bb4 {[%clk 0:00:17]} 42. Nd5 {[%clk 0:00:22]}  Bc5 {[%clk 0:00:16]} 43. Rxf3 {[%clk 0:00:22]}  Kg7 {[%clk 0:00:16]} 44. Kg2 {[%clk 0:00:15]}  Rxe4 {[%clk 0:00:14]} 45. Rc3 {[%clk 0:00:16]}  Bd6 {[%clk 0:00:14]} 46. Rc6 {[%clk 0:00:16]}  Bf8 {[%clk 0:00:11]} 47. Rc7+ {[%clk 0:00:16]}  Kh8 {[%clk 0:00:11]} 48. Nf4 {[%clk 0:00:11]}  Bd6 {[%clk 0:00:04]} 49. Nxg6+ {[%clk 0:00:11]}  Kg8 {[%clk 0:00:04]} 50. Rc6 {[%clk 0:00:11]}  Rd4 {[%clk 0:00:04]} 51. Nh4 {[%clk 0:00:11]}  Rd5 {[%clk 0:00:03]} 52. Nf5 {[%clk 0:00:08]}  Rxf5 {[%clk 0:00:02]} 53. Rxd6 {[%clk 0:00:09]}  Kg7 {[%clk 0:00:03]} 54. g4 {[%clk 0:00:08]}  Ra5 {[%clk 0:00:02]} 55. Kg3 {[%clk 0:00:09]}  Ra3+ {[%clk 0:00:02]} 56. f3 {[%clk 0:00:10]}  Rb3 {[%clk 0:00:03]} 57. h4 {[%clk 0:00:10]}  Ra3 {[%clk 0:00:03]} 58. g5 {[%clk 0:00:09]}  hxg5 {[%clk 0:00:02]} 59. hxg5 {[%clk 0:00:10]}  Ra4 {[%clk 0:00:02]} 60. f4 {[%clk 0:00:10]}  Ra1 {[%clk 0:00:03]} 61. Kg4 {[%clk 0:00:11]}  Ra5 {[%clk 0:00:04]} 62. Rd7+ {[%clk 0:00:10]}  Kg8 {[%clk 0:00:04]} 63. f5 {[%clk 0:00:10]}  Ra6 {[%clk 0:00:03]} 64. Kh5 {[%clk 0:00:10]}  Ra1 {[%clk 0:00:03]} 65. f6 {[%clk 0:00:10]}  Ra8 {[%clk 0:00:02]} 66. Kg6 {[%clk 0:00:11]}  Kh8 {[%clk 0:00:01]} 67. Rh7+ {[%clk 0:00:11]} 1-0


[Site "https://www.chess.com"]